bitfinex-derivatives/quotes_ETHF0:USTF0_20251021
["timestamp","ask_amount","ask_price","bid_price","bid_amount"]
[1761066495766,2.40891,4039.0,4038.8,3.2078]
[1761066496156,1.9634,4038.7,4038.2,3.2078]
[1761066496360,1.9634,4038.8,4038.2,3.2078]
[1761066496558,1.9634,4038.8,4037.7,3.2078]
[1761066496758,1.9634,4038.0,4037.7,3.2078]
[1761066497670,1.9634,4037.8,4037.7,3.2078]
[1761066498963,1.96576624,4037.8,4037.7,3.21090219]
[1761066499365,0.44569,4037.3,4037.2,3.2078]
[1761066499570,2.25179,4037.3,4037.2,3.2078]
[1761066499771,0.44571,4037.2,4036.7,3.2078]
[1761066500069,1.8061,4037.1,4036.8,0.44574]
[1761066500269,1.8061,4037.1,4036.7,3.2078]
[1761066500468,2.25182,4037.1,4036.7,3.21089238]
[1761066500669,2.25182,4037.1,4036.7,3.65664238]
[1761066500858,2.29824,4036.9,4036.7,0.00309238]
[1761066501969,1.8525,4035.9,4035.7,3.2078]
[1761066502170,2.29835,4035.9,4035.7,3.2078]
[1761066502368,3.2078,4036.8,4035.7,3.2078]
[1761066502567,1.8525,4037.0,4036.7,3.65355]
[1761066502768,0.44574,4036.9,4036.7,3.21005537]
[1761066502969,1.8525,4036.8,4036.7,3.21005537]
[1761066503269,1.8525,4037.1,4036.8,0.44575]
[1761066503470,1.85486624,4037.8,4037.5,0.44566]
[1761066503673,0.00236624,4037.8,4037.6,1.18815]
[1761066503859,0.00236624,4037.8,4037.6,0.44565]
[1761066504065,1.85486624,4037.8,4037.6,0.44565]
[1761066504564,0.00236624,4037.8,4037.6,0.44565]
[1761066504761,0.00236624,4037.8,4037.7,0.7425]
[1761066504967,0.00236624,4037.8,4037.7,5.7425]
[1761066505163,1.8525,4037.5,4037.4,3.2078]
[1761066505969,2.29825,4036.8,4036.7,0.00225537]
[1761066506161,1.85494626,4036.8,4036.7,0.00225537]
[1761066506365,0.00244626,4036.8,4036.7,0.00225537]
[1761066507363,0.00244626,4036.8,4036.7,0.74475537]
[1761066507565,3.2078,4037.7,4037.3,0.44568]
[1761066507770,0.44565,4037.7,4037.3,0.44568]
[1761066507978,0.44562,4037.9,4037.6,3.65345]
[1761066508174,1.8525,4038.1,4037.6,3.65345]
[1761066508476,1.8525,4038.1,4037.6,3.2078]
[1761066508782,0.00309881,4038.1,4038.0,1.18811]
[1761066509076,1.8525,4038.8,4038.4,0.44556]
[1761066509270,1.8525,4038.8,4038.5,3.2078]
[1761066509472,0.44554,4038.7,4038.5,3.2078]
[1761066509772,0.44558,4038.4,4038.0,3.65341]
[1761066509973,1.8525,4038.1,4037.6,0.44566]
[1761066510284,0.44565,4037.7,4037.5,3.2078]
[1761066510576,0.44564,4037.8,4037.5,3.2078]
[1761066510773,0.00247116,4038.1,4037.8,0.44563]
[1761066510982,0.00247116,4038.1,4037.5,3.2078]
[1761066511286,0.00247116,4038.1,4037.0,7.9915]
[1761066511287,0.44571,4037.1,4037.0,0.66522841]
[1761066511578,2.29822,4037.1,4036.9,3.87302841]
[1761066511776,0.7178,4037.0,4036.9,3.87302841]
[1761066511972,0.7178,4037.0,4036.9,0.66522841]
[1761066511973,2.5703,4037.0,4036.9,0.66522841]
[1761066512166,1.8525,4036.8,4036.7,0.00225537]
[1761066515569,1.8525,4037.6,4036.7,5.00225537]
[1761066515777,1.8525,4037.2,4037.1,3.2078]
[1761066515976,1.8525,4037.2,4036.7,0.00225537]
[1761066515977,2.29825,4036.8,4036.7,0.00225537]
[1761066516177,0.4457,4037.3,4036.7,0.44800537]
[1761066516478,0.4457,4037.3,4035.9,1.11461]
[1761066516479,1.8525,4036.0,4035.7,3.65367]
[1761066516678,2.29834,4036.0,4035.7,3.65367]
[1761066516879,0.44585,4035.9,4035.7,3.65367]
[1761066517075,1.8525,4036.6,4035.7,3.2078]
[1761066517472,3.2078,4036.7,4035.7,3.20971092]
[1761066517770,1.8525,4036.4,4035.9,0.44584]
[1761066517970,1.8525,4036.1,4035.9,3.2078]
[1761066518277,1.8525,4036.1,4035.9,3.65364]
[1761066518577,1.8525,4036.5,4036.3,0.4458]
[1761066518775,1.8525,4036.5,4036.4,3.2078]
[1761066520275,2.29824,4036.9,4036.6,0.44577]
[1761066520483,2.29824,4036.9,4036.7,0.44576]
[1761066520984,1.8525,4036.0,4035.9,3.2078]
[1761066522877,0.44585,4035.9,4035.7,0.00191092]
[1761066523076,2.29835,4035.9,4035.7,0.00191092]
[1761066523890,40.8,4036.4,4034.9,3.2078]
[1761066523891,0.44595,4035.0,4034.9,3.2078]
[1761066524085,1.8525,4035.0,4034.9,3.2078]
[1761066524281,5.0603,4035.0,4034.4,0.66522841]
[1761066524484,5.0603,4035.0,4033.9,3.2078]
[1761066524485,1.8525,4034.3,4033.9,3.2078]
[1761066524790,0.7178,4034.7,4033.9,3.2078]
[1761066525086,2.29849,4034.6,4034.4,3.2078]
[1761066527191,2.29849,4034.6,4034.4,2.8078]
[1761066528086,1.8525,4034.0,4033.9,0.00303794]
[1761066528690,1.8525,4034.0,4032.8,0.02479667]
[1761066528691,1.8525,4033.1,4032.8,0.02479667]
[1761066529187,0.44609,4033.7,4033.5,0.44611]
[1761066529391,3.2078,4034.8,4033.0,0.7455]
[1761066529392,1.8525,4034.4,4033.6,3.65389]
[1761066529583,0.44608,4033.8,4033.6,3.21041857]
[1761066529781,0.44608,4033.8,4033.6,3.65651857]
[1761066529782,1.8525,4033.8,4033.6,3.65651857]
[1761066530390,1.8525,4034.2,4034.0,0.44605]
[1761066530979,1.8525,4034.2,4034.1,3.2078]
[1761066531186,2.39239933,4034.7,4034.6,0.44599]
[1761066531382,0.00299933,4034.7,4034.6,0.44599]
[1761066531584,1.67459933,4034.7,4034.6,0.44599]
[1761066531787,1.67459933,4034.7,4034.1,3.2078]
[1761066531990,1.6716,4033.7,4033.2,0.44614]
[1761066532190,1.6716,4033.7,4032.8,0.02479667]
[1761066532191,6.6716,4033.7,4032.8,0.02479667]
[1761066532496,2.77978,4032.9,4032.8,0.02479667]
[1761066533380,2.77978,4032.9,4032.8,0.0271222]
[1761066533787,2.3336,4032.9,4032.8,0.0271222]
[1761066535897,5.5414,4032.9,4032.8,0.0271222]
[1761066536396,2.3336,4032.9,4032.8,0.0271222]
[1761066536889,1.6716,4032.8,4032.0,3.2078]
[1761066537090,1.6716,4032.8,4031.0,0.60942281]
[1761066537091,1.6716,4034.0,4032.8,1.53028]
[1761066537294,1.6716,4034.0,4032.1,10.254]
[1761066537295,1.6716,4033.7,4033.3,3.2078]
[1761066537500,1.6716,4033.4,4033.3,3.2078]
[1761066537888,1.6716,4033.4,4033.3,3.65694698]
[1761066538289,1.6716,4033.4,4033.3,3.21081698]
[1761066539901,1.6716,4033.5,4033.3,3.21081698]
[1761066540390,1.6716,4033.5,4033.3,3.65694698]
[1761066540787,1.6716,4034.3,4033.3,3.21081698]
[1761066541001,1.6716,4033.4,4033.3,0.00301698]
[1761066542095,1.6716,4033.4,4032.2,0.44625]
[1761066542096,0.44625,4032.3,4032.2,0.44625]
[1761066542397,0.44625,4032.3,4032.1,3.2078]
[1761066542591,2.11791,4031.7,4031.6,3.2078]
[1761066542792,1.6716,4031.7,4031.6,3.2078]
[1761066542992,1.11556,4032.6,4031.6,3.2078]
[1761066542993,1.6716,4032.5,4031.9,0.44628]
[1761066543198,0.00251509,4032.5,4032.4,0.86103]
[1761066544296,1.6716,4032.2,4032.1,3.2078]
[1761066545407,1.67411509,4032.5,4032.1,3.2078]
[1761066545606,0.00251509,4032.5,4032.4,0.86103]
[1761066545810,3.2078,4033.4,4033.3,0.44613]
[1761066546104,0.662,4034.7,4033.0,3.2078]
[1761066546105,1.6716,4033.7,4033.0,3.2078]
[1761066546312,1.6716,4033.7,4033.5,0.44611]
[1761066546819,3.2078,4034.4,4034.1,0.44604]
[1761066547020,3.2078,4034.4,4034.3,0.44602]
[1761066547021,3.21022273,4034.4,4034.3,0.44602]
[1761066547318,0.662,4033.8,4033.1,3.2078]
[1761066547618,1.6716,4034.3,4034.2,0.44603]
[1761066547917,2.11763,4034.3,4034.1,0.44604]
[1761066548111,1.6716,4034.2,4034.1,0.44604]
[1761066548314,3.21022273,4034.4,4034.3,0.44602]
[1761066548511,3.21022273,4034.4,4034.3,0.86082]
[1761066548712,0.00242273,4034.4,4034.3,0.86082]
[1761066548918,0.00242273,4034.4,4034.3,5.86082]
[1761066549318,3.2078,4035.1,4035.0,0.44595]
[1761066549512,4.8794,4035.1,4035.0,0.44595]
[1761066549815,1.6716,4035.0,4034.9,0.44595]
[1761066550122,1.6716,4035.5,4035.4,0.44589]
[1761066550319,0.00281574,4035.5,4035.4,0.44859755]
[1761066550521,0.00281574,4035.5,4035.4,0.86339755]
[1761066550711,4.8794,4036.2,4035.4,0.00270755]
[1761066550912,2.77949,4035.6,4035.4,0.00270755]
[1761066551109,1.6716,4035.5,4035.4,0.00270755]
[1761066551620,1.67430403,4035.5,4035.4,0.00270755]
[1761066552910,1.67430403,4035.5,4035.4,0.44860755]
[1761066554417,0.00270403,4035.5,4035.4,0.44860755]
[1761066556115,6.67430403,4035.5,4035.4,0.00270755]
[1761066556515,6.67430403,4035.5,4034.6,3.2078]
[1761066556516,2.77958,4034.7,4034.6,3.2078]
[1761066556715,2.77958,4034.7,4033.4,0.4148]
[1761066556716,1.6716,4034.3,4034.1,3.65384]
[1761066557117,1.6716,4034.2,4034.1,3.2078]
[1761066557318,1.6716,4033.9,4033.6,0.4461]
[1761066557518,1.6716,4033.7,4033.5,0.4461]
[1761066557720,1.6716,4033.3,4033.2,0.44614]
[1761066557918,1.6716,4033.3,4033.2,0.00272865]
[1761066560716,2.03137,4032.1,4032.0,3.2078]
[1761066561628,2.03453564,4032.1,4032.0,3.20989688]
[1761066561919,1.5851,4031.2,4030.8,0.44641]
[1761066562224,0.6518,4030.2,4030.1,3.65429]
[1761066562420,2.2369,4030.2,4030.1,3.65429]
[1761066562619,1.5851,4030.7,4030.4,0.44645]
[1761066562823,1.5851,4030.7,4030.4,0.44928809]
[1761066563027,1.5851,4030.7,4030.5,0.44644]
[1761066564129,1.5851,4031.0,4030.9,0.4464]
[1761066564320,1.5851,4031.5,4031.4,0.44634]
[1761066564618,1.5851,4031.5,4030.4,0.00283809]
[1761066564619,1.5851,4031.0,4030.4,0.00283809]
[1761066564822,0.6518,4031.1,4030.4,0.00283809]
[1761066564823,2.03154,4030.5,4030.4,0.00283809]
[1761066565220,7.03154,4030.5,4030.4,0.00283809]
[1761066565422,2.03154,4030.5,4030.4,0.00283809]
[1761066566630,1.5851,4030.5,4030.4,0.00283809]
[1761066567129,3.2078,4030.9,4030.6,0.44643]
[1761066567428,1.5851,4030.7,4030.6,0.44643]
[1761066568932,1.5851,4030.5,4030.4,0.00283809]
[1761066569142,1.5851,4029.2,4029.1,3.2078]
[1761066569428,1.5851,4029.2,4028.2,3.2078]
[1761066569627,1.5851,4029.1,4028.7,0.44664]
[1761066569822,1.5851,4028.8,4028.2,3.2078]
[1761066570024,1.5851,4028.6,4028.5,0.44666]
[1761066570225,1.58801613,4028.6,4028.5,0.44848163]
[1761066570434,1.58801613,4028.6,4028.5,0.00182163]
[1761066570834,1.5851,4029.2,4029.1,0.4466]
[1761066571032,44.0078,4030.0,4028.5,5.00182163]
[1761066571033,1.5851,4029.6,4029.2,0.44659]
[1761066571222,10.213,4030.9,4028.7,3.2078]
[1761066571223,0.44663,4028.8,4028.7,3.2078]
[1761066571528,2.03175,4028.6,4028.5,0.00182163]
[1761066571921,1.5871446,4028.6,4028.5,0.00182163]
[1761066572126,1.5871446,4028.6,4027.3,3.2078]
[1761066572328,1.5851,4027.4,4026.2,3.2078]
[1761066572525,1.5851,4027.4,4026.8,3.2078]
[1761066572728,1.5851,4027.4,4027.0,0.44683]
[1761066572927,1.5851,4027.4,4027.2,0.4468]
[1761066573436,8.2078,4027.3,4025.3,4.8859]
[1761066573632,3.2078,4026.2,4026.0,0.44694]
[1761066573826,5.23982,4026.3,4025.6,0.44698]
[1761066574032,1.5851,4026.2,4025.7,0.44697]
[1761066574232,0.6518,4026.0,4025.3,3.2078]
[1761066574535,1.5851,4025.4,4024.8,0.19498102]
[1761066574723,1.5851,4025.4,4025.2,0.44703]
[1761066574927,1.5851,4025.5,4024.3,1.6781]
[1761066575139,1.5851,4025.2,4024.9,0.44706]
[1761066575349,1.5851,4025.5,4025.1,0.44704]
[1761066575638,42.56903,4026.6,4025.4,3.2078]
[1761066575639,3.2078,4026.4,4025.4,3.2078]
[1761066575841,1.5851,4026.5,4026.0,0.44694]
[1761066576136,1.5851,4026.5,4026.1,0.44693]
[1761066576332,40.8,4027.4,4025.7,1.6781]
[1761066576333,1.5851,4026.3,4025.7,0.44697]
[1761066576533,0.44693,4026.2,4025.8,0.44696]
[1761066576735,1.5851,4026.1,4025.9,0.44695]
[1761066577039,3.2078,4026.4,4026.2,0.44692]
[1761066577238,0.44692,4026.3,4026.0,0.44694]
[1761066577433,1.5851,4026.3,4026.1,0.44693]
[1761066577837,3.2078,4026.4,4026.3,0.44691]
[1761066578141,4.7929,4026.4,4026.3,0.44691]
[1761066578836,4.7929,4026.4,4025.4,3.2078]
[1761066578837,1.5851,4026.3,4026.1,0.44692]
[1761066579340,6.5851,4026.3,4025.4,3.2078]
[1761066579535,1.5851,4025.5,4024.9,3.2078]
[1761066579842,2.03212,4025.4,4025.2,0.44703]
[1761066580034,1.5851,4025.3,4025.2,0.44703]
[1761066581039,4.7929,4025.3,4024.3,4.8859]
[1761066581237,2.03222,4024.5,4024.3,0.44713]
[1761066581432,1.5851,4024.5,4024.3,0.44713]
[1761066581628,1.5851,4024.5,4024.3,3.65493]
[1761066581836,1.5851,4025.1,4024.9,0.44706]
[1761066582039,1.5851,4025.1,4024.9,0.44979523]
[1761066583138,8.02e-06,4025.3,4025.2,1.6781]
[1761066583345,3.2078,4026.2,4026.1,0.44693]
[1761066583841,4.7929,4026.2,4025.6,3.2078]
[1761066584040,4.7929,4026.2,4025.1,2.79572]
[1761066584041,1.5851,4025.9,4025.8,0.44697]
[1761066584238,3.2078,4026.2,4026.0,0.44693]
[1761066584239,1.5851,4026.1,4026.0,0.44693]
[1761066584732,1.5851,4025.9,4025.7,0.44697]
[1761066584932,2.03209,4025.6,4025.0,3.2078]
[1761066585235,2.03209,4025.6,4024.9,0.00273523]
[1761066585236,2.2369,4025.0,4024.9,0.00273523]
[1761066585639,7.2369,4025.0,4024.9,0.00273523]
[1761066585840,1.5851,4024.3,4024.2,0.44714]
[1761066586232,1.5851,4024.9,4024.8,0.44707]
[1761066586637,1.5851,4024.7,4024.6,0.4471]
[1761066586837,1.5851,4024.7,4024.6,0.45021621]
[1761066587746,3.2078,4025.2,4024.7,0.44708]
[1761066587939,3.2078,4025.2,4024.6,0.00311621]
[1761066588140,3.2078,4024.7,4024.6,0.00311621]
[1761066588339,4.7929,4024.7,4024.6,0.00311621]
[1761066590840,1.5431,4024.9,4024.8,0.44707]
[1761066591040,3.2078,4025.7,4025.6,0.44699]
[1761066591242,1.5431,4025.3,4024.8,3.2078]
[1761066591441,1.5431,4025.3,4024.7,1.1177]
[1761066591442,1.5431,4025.3,4025.1,0.44703]
[1761066591647,1.5431,4025.3,4024.6,0.00311621]
[1761066591648,1.5431,4024.7,4024.6,0.00311621]
[1761066591947,3.2078,4025.2,4024.6,0.00311621]
[1761066592244,4.7509,4025.2,4025.1,0.44704]
[1761066593039,3.2078,4025.2,4025.1,0.44704]
[1761066593648,4.7509,4025.2,4025.1,0.44704]
[1761066593837,0.44707,4024.9,4024.6,0.00311621]
[1761066594046,3.2078,4025.2,4024.6,0.00311621]
[1761066594240,0.5884,4024.8,4024.6,0.00311621]
[1761066594445,4.7509,4024.7,4024.6,0.00311621]
[1761066594952,1.5431,4023.8,4023.3,0.44723]
[1761066595162,1.5431,4023.4,4023.2,3.2078]
[1761066595544,1.5431,4023.4,4023.3,0.44724]
[1761066595850,1.5431,4023.7,4023.6,0.44721]
[1761066596046,4.7509,4024.2,4024.1,0.44715]
[1761066598053,1.5431,4024.6,4024.5,0.44711]
[1761066598649,1.5431,4024.6,4023.6,2.69832]
[1761066598650,0.44719,4023.8,4023.6,0.44721]
[1761066598955,1.5431,4023.9,4023.7,0.44719]
[1761066599455,0.5884,4024.0,4023.5,0.44722]
[1761066599651,1.5431,4023.9,4023.5,0.44722]
[1761066599848,1.5431,4023.7,4023.6,0.44721]
[1761066600251,0.44716,4024.1,4023.9,0.44718]
[1761066600447,3.2078,4024.2,4024.1,0.44715]
[1761066600646,4.7509,4024.2,4023.6,1.11803]
[1761066600859,1.5431,4024.1,4024.0,0.44716]
[1761066601056,3.2078,4024.2,4024.0,2.02746]
[1761066601257,3.2078,4024.2,4024.0,0.44716]
[1761066601452,0.5884,4023.0,4022.1,0.66522841]
[1761066601649,3.2078,4022.8,4022.1,0.66522841]
[1761066601852,0.44743,4021.7,4020.8,2.24552841]
[1761066602046,1.5431,4021.5,4021.3,0.44745]
[1761066602254,1.5431,4021.7,4020.7,0.44753]
[1761066602558,4.7509,4021.3,4020.7,0.00228604]
[1761066602760,1.99059,4021.1,4020.7,0.44980604]
[1761066602958,1.5431,4021.1,4020.8,0.44752]
[1761066603259,0.44751,4021.0,4020.7,0.00228604]
[1761066603555,0.5884,4021.2,4020.7,0.00228604]
[1761066603556,1.5431,4020.9,4020.7,0.44981604]
[1761066603754,0.5884,4021.2,4021.1,0.44749]
[1761066603959,1.54585936,4021.7,4021.6,0.44743]
[1761066604254,0.00275936,4021.7,4021.6,0.44743]
[1761066604456,0.00275936,4021.7,4021.6,10.23553]
[1761066604859,1.5431,4022.7,4022.6,0.44732]
[1761066605450,1.5431,4022.4,4021.1,1.5803]
[1761066605756,1.5431,4021.3,4021.0,0.4475]
[1761066606155,1.5431,4021.0,4020.8,0.44752]
[1761066606860,3.2078,4021.4,4021.2,0.44747]
[1761066606861,1.5431,4021.3,4021.2,0.44747]
[1761066607357,1.5431,4021.2,4021.1,0.44748]
[1761066607756,4.7509,4021.4,4021.3,0.44746]
[1761066608462,1.5431,4021.4,4021.3,0.44746]
[1761066608850,3.2078,4021.9,4021.3,6.5803]
[1761066609056,40.8,4023.2,4020.7,0.00228604]
[1761066609057,1.5431,4021.2,4021.0,0.44751]
[1761066609766,3.2078,4021.4,4021.3,0.44747]
[1761066609951,1.5431,4022.2,4022.1,0.44739]
[1761066610151,3.2107643,4022.4,4022.3,0.44736]
[1761066610650,0.0029643,4022.4,4022.3,7.02766]
[1761066611458,1.5460643,4022.4,4021.5,1.5803]
[1761066611655,1.5431,4022.1,4021.5,1.5803]
[1761066611858,1.5460643,4022.4,4022.3,0.44736]
[1761066612168,1.5460643,4022.4,4021.4,1.5803]
[1761066612464,1.5431,4021.7,4020.8,3.2078]
[1761066612662,1.5431,4021.3,4021.2,0.44749]
[1761066612866,0.44748,4021.3,4020.8,3.2078]
[1761066613159,3.2078,4021.8,4021.6,2.02774]
[1761066613360,3.2078,4021.8,4021.6,0.44744]
[1761066613672,0.44745,4021.6,4021.0,1.5803]
[1761066613959,3.2078,4021.8,4021.1,1.11875]
[1761066614263,0.44746,4021.5,4020.9,11.7723]
[1761066614465,1.5431,4021.4,4021.3,0.44747]
[1761066614968,1.99057,4021.4,4021.2,0.44748]
[1761066615157,1.5431,4021.4,4021.2,0.44748]
[1761066615359,3.2078,4021.8,4021.7,0.44743]
[1761066615557,3.2078,4021.8,4021.7,2.02773]
[1761066615758,3.2078,4021.8,4021.6,0.44744]
[1761066616060,0.44746,4021.5,4020.8,1.11881]
[1761066616369,1.5431,4021.4,4021.3,0.44747]
[1761066617656,1.5431,4021.0,4020.7,3.21008604]
[1761066617855,1.5431,4020.9,4020.8,0.44752]
[1761066618055,3.7962,4021.2,4021.0,0.44751]
[1761066618056,3.2078,4021.2,4021.0,0.44751]
[1761066618257,3.2078,4021.2,4020.7,3.21008604]
[1761066618258,3.2078,4021.9,4021.7,0.44742]
[1761066618462,3.2078,4021.9,4020.7,3.21008604]
[1761066618463,4.32633,4021.9,4020.8,3.22759865]
[1761066618656,4.32633,4021.9,4020.7,3.21008604]
[1761066618657,1.3511,4021.0,4020.9,0.44751]
[1761066618862,1.3511,4020.9,4020.8,0.44753]
[1761066619061,1.79863,4020.8,4020.7,0.00228604]
[1761066619966,1.79863,4020.8,4019.4,1.4825]
[1761066619967,5.0,4020.8,4019.4,1.4825]
[1761066620173,3.2078,4019.9,4019.7,0.44765]
[1761066620369,3.2078,4020.6,4020.5,0.44756]
[1761066620665,1.3807,4021.6,4021.5,0.44745]
[1761066620861,1.3807,4021.6,4020.7,4.32664]
[1761066621168,1.3807,4021.5,4021.4,0.44746]
[1761066621666,3.2078,4022.3,4021.4,5.0]
[1761066621864,1.3807,4022.0,4021.3,1.4694]
[1761066622163,1.3807,4022.0,4021.8,0.44742]
[1761066622671,3.2078,4022.3,4022.2,0.44737]
[1761066622862,0.0029643,4022.4,4022.2,0.44737]
[1761066623057,0.0029643,4022.4,4022.3,1.4694]
[1761066623367,0.0029643,4022.4,4022.2,1.91677]
[1761066623772,0.86034,4023.1,4022.3,1.4694]
[1761066623961,0.5686,4024.8,4024.6,0.4471]
[1761066624273,4.07233745,4025.4,4024.5,0.44711]
[1761066624462,4.07233745,4025.4,4023.2,1.4722]
[1761066624463,3.2078,4024.7,4023.2,1.4722]
[1761066624667,0.5686,4024.8,4023.2,1.4722]
[1761066624668,3.2078,4024.6,4024.2,0.44715]
[1761066624869,3.2078,4025.1,4025.0,0.44706]
[1761066625074,3.2078,4025.6,4025.4,0.44701]
[1761066625372,3.2078,4026.9,4025.5,5.0]
[1761066625559,0.5686,4027.5,4026.2,3.2078]
[1761066625758,3.2078,4027.7,4027.2,0.44681]
[1761066626075,1.38320288,4027.7,4027.5,0.44678]
[1761066626663,0.00250288,4027.7,4027.5,0.44678]
[1761066626869,0.00250288,4027.7,4027.5,0.95748]
[1761066627063,0.00250288,4027.7,4027.5,0.44678]
[1761066627561,0.00250288,4027.7,4027.5,0.95748]
[1761066627968,0.00250288,4027.7,4027.5,0.44678]
[1761066628271,1.38320288,4027.7,4027.5,0.44678]
[1761066628666,1.38320288,4027.7,4027.4,0.4468]
[1761066628864,0.00250288,4027.7,4027.6,0.44678]
[1761066629766,0.00250288,4027.7,4027.3,0.4468]
[1761066629975,1.38320288,4027.7,4027.3,0.4468]
[1761066630177,1.3807,4027.4,4027.2,10.17783516]
[1761066630370,4.5885,4027.3,4027.2,10.17783516]
[1761066630575,4.5885,4027.3,4027.2,0.00283516]
[1761066630778,9.5885,4027.3,4027.2,0.00283516]
[1761066630975,1.3807,4026.9,4025.4,3.2078]
[1761066631168,0.44703,4025.3,4024.9,3.65487]
[1761066631473,3.2078,4025.6,4024.9,3.65487]
[1761066631474,1.3807,4025.0,4024.9,3.2078]
[1761066631668,1.3807,4024.8,4024.1,3.2078]
[1761066631866,1.3807,4024.7,4024.3,0.44713]
[1761066632065,1.3807,4024.7,4024.1,3.21082374]
[1761066632066,1.3807,4024.7,4024.4,0.44712]
[1761066632263,0.44924487,4024.8,4024.6,0.4471]
[1761066632264,0.00215487,4024.8,4024.6,0.4471]
[1761066632474,0.00215487,4024.8,4024.7,0.5107]
[1761066632688,1.3807,4024.7,4024.6,3.2078]
[1761066632872,0.00215487,4024.8,4024.7,0.4471]
[1761066633374,1.3807,4024.7,4024.6,3.2078]
[1761066633775,1.3807,4024.7,4024.1,0.00302374]
[1761066633980,1.3807,4024.6,4024.3,0.44714]
[1761066634275,1.3807,4024.6,4024.1,0.00302374]
[1761066634276,1.3807,4024.6,4024.5,0.44712]
[1761066634470,1.3807,4024.6,4024.1,0.00302374]
[1761066634471,0.00215487,4024.8,4024.7,0.4471]
[1761066634674,1.38285487,4024.8,4024.7,0.4471]
[1761066634871,0.00215487,4024.8,4024.7,0.4471]
[1761066637083,0.00215487,4024.8,4024.1,0.00302374]
[1761066637084,1.82785,4024.2,4024.1,0.00302374]
[1761066637374,1.3807,4024.2,4024.1,0.00302374]
[1761066637878,1.3807,4024.6,4024.1,0.00302374]
[1761066638079,1.3807,4024.6,4024.4,0.44713]
[1761066639175,1.3807,4024.5,4024.4,0.44713]
[1761066640483,0.00215487,4024.8,4024.7,0.4471]
[1761066640780,0.44924487,4024.8,4024.5,0.44711]
[1761066640978,0.44924487,4024.8,4024.1,0.00302374]
[1761066640979,1.82785,4024.2,4024.1,0.00302374]
[1761066641172,1.3807,4023.6,4021.9,3.2078]
[1761066641372,1.3807,4023.6,4023.4,0.44723]
[1761066641584,1.3807,4023.6,4023.4,3.65503]
[1761066641785,1.3807,4023.9,4023.8,0.4472]
[1761066642082,0.00215487,4024.8,4023.8,0.4472]
[1761066642083,2.49845,4024.7,4023.8,0.00222061]
[1761066642280,1.3807,4023.9,4023.8,0.00222061]
[1761066643370,1.3807,4024.5,4024.4,0.44713]
[1761066643570,1.3807,4024.5,4024.0,1.11794]
[1761066643571,3.20995487,4024.8,4024.7,0.4471]
[1761066643785,0.00215487,4024.8,4024.7,0.4471]
[1761066644180,1.3807,4024.7,4023.9,3.2078]
[1761066644373,0.44711,4024.6,4024.3,0.44714]
[1761066644579,0.00215487,4024.8,4024.2,3.2078]
[1761066644580,1.3807,4024.5,4024.2,3.2078]
[1761066644786,0.00215487,4024.8,4024.7,0.4471]
[1761066645082,0.00215487,4024.8,4024.7,3.6549]
[1761066645275,0.44702,4025.5,4024.7,3.6549]
[1761066645276,1.3807,4025.5,4024.7,3.7185]
[1761066645477,0.5686,4026.0,4025.8,0.44697]
[1761066645682,1.3807,4025.9,4025.8,0.44697]
[1761066645982,3.2078,4026.3,4025.4,3.2078]
[1761066645983,4.5885,4026.3,4026.2,0.44693]
[1761066646178,1.3807,4026.8,4026.5,0.44689]
[1761066646484,1.38351409,4026.8,4026.6,0.44688]
[1761066646686,0.00281409,4026.8,4026.6,0.44688]
[1761066647786,0.00281409,4026.8,4024.6,2.90073841]
[1761066647787,1.3807,4026.7,4024.9,4.83618]
[1761066647978,1.3807,4026.1,4025.5,3.2078]
[1761066648286,1.3807,4025.9,4025.5,3.6548]
[1761066648583,0.4469,4026.5,4026.1,0.44694]
[1761066648882,1.3807,4026.4,4026.2,0.44693]
[1761066649086,1.3807,4026.4,4026.1,0.44694]
[1761066649290,1.3807,4026.1,4026.0,3.2078]
[1761066649485,0.44689,4026.6,4026.1,0.44694]
[1761066649688,1.3807,4026.1,4025.8,0.44696]
[1761066649985,1.3807,4025.9,4025.7,0.44698]
[1761066650184,1.3807,4025.8,4025.3,3.23133976]
[1761066650379,3.2078,4026.3,4025.5,3.2078]
[1761066650682,0.00281409,4026.8,4025.6,6.42885615]
[1761066650980,1.3368,4028.5,4027.3,1.11702]
[1761066651294,1.3368,4028.2,4028.0,3.2078]
[1761066651478,1.3368,4028.2,4028.0,3.65452]
[1761066651791,1.3368,4028.2,4028.0,3.6572992]
[1761066651792,1.3390593,4028.2,4028.0,3.6572992]
[1761066652783,0.0022593,4028.2,4028.0,3.6572992]
[1761066653481,1.3390593,4028.2,4028.0,3.6572992]
[1761066654187,0.0022593,4028.2,4028.0,3.2105792]
[1761066654392,1.3390593,4028.2,4028.0,3.6573092]
[1761066656179,1.3390593,4028.2,4028.0,3.2105792]
[1761066656381,1.78352,4028.1,4028.0,3.2105792]
[1761066657988,1.78352,4028.1,4028.0,0.0027792]
[1761066658386,1.3368,4028.1,4028.0,0.0027792]
[1761066660995,6.3368,4028.1,4028.0,0.0027792]
[1761066662390,0.44686,4026.8,4026.7,3.2078]
[1761066662582,1.3368,4026.3,4026.2,3.2078]
[1761066662983,1.6376,4025.7,4024.6,3.2078]
[1761066663280,0.5201,4025.7,4025.6,3.2078]
[1761066663489,0.44691,4026.4,4025.6,3.21006947]
[1761066663690,0.44692,4026.3,4026.1,0.44694]
[1761066663892,1.3368,4026.2,4026.1,0.44694]
[1761066664288,0.5201,4026.6,4026.5,0.4469]
[1761066664697,1.8569,4026.6,4026.5,0.4469]
[1761066665198,3.2078,4028.0,4026.1,3.2078]
[1761066665390,0.44686,4026.8,4026.7,3.2078]
[1761066666388,3.2078,4027.3,4026.7,3.2078]
[1761066666697,0.44684,4027.0,4026.8,1.2801]
[1761066667094,0.44686,4026.8,4026.7,3.2078]